{"text_format":"1","workbook":"xlsx","n_sheets":2,"sheets":["Bid No-Bid Tool","Sheet2"],"not_rendered":{"charts":18,"images":3,"macros":1,"external_links":0,"defined_names":0,"comments":0,"pivot_tables":0},"unopened":[],"bounds":{"document_bytes":16777216,"sheet_cells":100000,"rows_first":2000,"rows_last":500,"rows_between":2000,"halvings":0,"cell_chars":16384,"cell_head_chars":4096},"cells_cut":0,"cells_raw":0,"read":"whole","date_system":"1900"}

{"sheet":"Bid No-Bid Tool","index":0,"n_rows":57,"n_cols":19,"rows_kept":57,"cut":false,"hidden":false,"merged":[[1,3,4,4]]}
[]
[]
[]
[]
[]
[null,null,null,"Bid/No-Bid Decision-Making Tool"]
[null,null,null,"Use this tool to aid in your decision to pursue a Bid for the Sonora Port Project"]
[null,null,null,"Read each statement and assign a score based how much you agree with it"]
[null,null,null,"(Note: You must enable macros for the tool to function correctly)"]
[{"$f":"SUM(A11:A53)","v":22},null,null,"Bidding Resources","Disagree",null,null,null,"Agree",null,"Score"]
[{"$f":"B11*C11","v":1},1,1,"We have the resources to bid the Sonora Port Project",null,null,null,null,null,null,5,null,null,null,null,null,{"$f":"R11*S11","v":0},1]
[null,null,null,null,null,null,null,null,null,null,null,null,null,null,null,null,{"$f":"R12*S12","v":0},1]
[null,null,null,null,null,null,null,null,null,null,null,null,null,null,null,null,{"$f":"R13*S13","v":0},1]
[4,1,4,"Financial","Disagree",null,null,null,"Agree"]
[1,1,1,"We have the bonding capacity for a Project this size",null,null,null,null,null,null,5]
[5,1,5,"We have the insurance capacity for this Project",null,null,null,null,null,null,5]
[null,null,null,"We have the financial capacity to take on the Sonora Port Project",null,null,null,null,null,null,5,null,null,null,null,null,{"$f":"R17*S17","v":0},1]
[null,null,null,null,null,null,null,null,null,null,{"$f":"AVERAGE(K15:K17)","v":5},null,null,null,null,null,{"$f":"R18*S18","v":0},1]
[null,null,null,null,null,null,null,null,null,null,null,null,null,null,null,null,{"$f":"R19*S19","v":0},1]
[0,1,null,"Scope","Disagree",null,null,null,"Agree"]
[0,1,null,"The plans and specifications for the Project are complete",null,null,null,null,null,null,5]
[0,1,null,"The scope of work for the Project is clearly defined",null,null,null,null,null,null,5]
[null,null,null,"We have a clear understanding of the requirements of the Project",null,null,null,null,null,null,5,null,null,null,null,null,{"$f":"R23*S23","v":0},1]
[null,null,null,null,null,null,null,null,null,null,{"$f":"AVERAGE(K21:K23)","v":5},null,null,null,null,null,{"$f":"R24*S24","v":0},1]
[]
[0,1,null,"Project Requirements","Disagree",null,null,null,"Agree"]
[0,1,null,"We successfully completed Projects of similar size and scope in the past",null,null,null,null,null,null,5]
[0,1,null,"We have, or will have, the workforce required to sucessfully complete this Project",null,null,null,null,null,null,5,null,null,null,null,null,{"$f":"R28*S28","v":0},1]
[5,1,5,"We can acquire the building materials and supplies necessary for the Project",null,null,null,null,null,null,5,null,null,null,null,null,{"$f":"R29*S29","v":0},1]
[5,1,5,"We have, or will have, the tools and equipment needed for the Project",null,null,null,null,null,null,5,null,null,null,null,null,{"$f":"R30*S30","v":1},1,1]
[null,null,null,"We are experienced in the Project Delivery Method required for this Project",null,null,null,null,null,null,5]
[null,null,null,null,null,null,null,null,null,null,{"$f":"AVERAGE(K27:K31)","v":5}]
[]
[0,1,null,"Relationships","Disagree",null,null,null,"Agree"]
[0,1,null,"We have a favorable relationship with the Sonora Port Project Principals",null,null,null,null,null,null,5]
[0,1,null,"In the past, we worked successfully with these kinds of Projects and Project Principals",null,null,null,null,null,null,5]
[null,null,null,"We have access to engineers, architects & other professionals necessary for Project",null,null,null,null,null,null,5]
[null,null,null,null,null,null,null,null,null,null,{"$f":"AVERAGE(K35:K37)","v":5}]
[]
[0,1,null,"Contractual Requirements","Disagree",null,null,null,"Agree"]
[0,1,null,"We have all the proper licensing necessary for the Project location",null,null,null,null,null,null,5]
[0,1,null,"We can successfully meet the contractual obligations of the Project",null,null,null,null,null,null,5]
[null,null,null,"We believe this will be a profitable Project should we be awarded it ",null,null,null,null,null,null,5]
[null,null,null,null,null,null,null,null,null,null,{"$f":"AVERAGE(K41:K43)","v":5}]
[]
[0,1,null,"Competition","Disagree",null,null,null,"Agree"]
[0,1,null,"We know the other construction firms bidding on the Project",null,null,null,null,null,null,5]
[null,null,null,"We are confident we have a good chance of winning the Project",null,null,null,null,null,null,5]
[null,null,null,null,null,null,null,null,null,null,{"$f":"AVERAGE(K47:K48)","v":5}]
[]
[0,1,null,"General Requirements","Disagree",null,null,null,"Agree"]
[0,1,null,"The Project fits with our Company's Strategic Plans & Goals",null,null,null,null,null,null,5]
[1,1,1,"We don't expect any conflicts with other projects we are working on simultaneously",null,null,null,null,null,null,5]
[null,null,null,"There seem to be no apparent risks to bidding and winning this Project",null,null,null,null,null,null,5]
[null,null,null,null,null,null,null,null,null,null,{"$f":"AVERAGE(K52:K54)","v":5}]
[]
[null,null,null,null,null,null,null,null,null,null,{"$f":"AVERAGE(K54,K53,K52,K48,K47,K43,K42,K41,K37,K36,K35,K31,K30,K29,K28,K27,K23,K22,K21,K17,K16,K15,K11)","v":5}]

{"sheet":"Sheet2","index":1,"n_rows":64,"n_cols":3,"rows_kept":64,"cut":false,"hidden":true,"merged":[]}
[]
[null,"Bid","Pie"]
[null,1,{"$f":"'Bid No-Bid Tool'!K11-0.5","v":4.5}]
[null,1,0.1]
[null,1,{"$f":"10.1-(C3+C4)","v":5.5}]
[null,1]
[null,1]
[null,5]
[null,"Financial","Pie"]
[null,1,{"$f":"'Bid No-Bid Tool'!K18-0.5","v":4.5}]
[null,1,0.1]
[null,1,{"$f":"10.1-(C10+C11)","v":5.5}]
[null,1]
[null,1]
[null,5]
[null,"Scope","Pie"]
[null,1,{"$f":"'Bid No-Bid Tool'!K24-0.5","v":4.5}]
[null,1,0.1]
[null,1,{"$f":"10.1-(C17+C18)","v":5.5}]
[null,1]
[null,1]
[null,5]
[null,"Project","Pie"]
[null,1,{"$f":"'Bid No-Bid Tool'!K32-0.5","v":4.5}]
[null,1,0.1]
[null,1,{"$f":"10.1-(C24+C25)","v":5.5}]
[null,1]
[null,1]
[null,5]
[null,"Relationship","Pie"]
[null,1,{"$f":"'Bid No-Bid Tool'!K38-0.5","v":4.5}]
[null,1,0.1]
[null,1,{"$f":"10.1-(C31+C32)","v":5.5}]
[null,1]
[null,1]
[null,5]
[null,"Contract","Pie"]
[null,1,{"$f":"'Bid No-Bid Tool'!K44-0.5","v":4.5}]
[null,1,0.1]
[null,1,{"$f":"10.1-(C38+C39)","v":5.5}]
[null,1]
[null,1]
[null,5]
[null,"Competition","Pie"]
[null,1,{"$f":"'Bid No-Bid Tool'!K49-0.5","v":4.5}]
[null,1,0.1]
[null,1,{"$f":"10.1-(C45+C46)","v":5.5}]
[null,1]
[null,1]
[null,5]
[null,"General","Pie"]
[null,1,{"$f":"'Bid No-Bid Tool'!K55-0.5","v":4.5}]
[null,1,0.1]
[null,1,{"$f":"10.1-(C52+C53)","v":5.5}]
[null,1]
[null,1]
[null,5]
[null,"All","Pie"]
[null,1,{"$f":"'Bid No-Bid Tool'!K57-0.5","v":4.5}]
[null,1,0.1]
[null,1,{"$f":"10.1-(C59+C60)","v":5.5}]
[null,1]
[null,1]
[null,5]